Cogmind - Beta 10.1 @@@ ROGUE MODE // 2020.10.14 @ 13:15:12 Player: Pimski Result: Destroyed by 8R-AWN with 8R-AWN's Boregun Performance ------------- Evolutions (0) 0 Regions Visited (3) 600 Robots Destroyed (46) 230 Value Destroyed (782) 782 Prototype IDs (23) 460 Alien Tech Used (0) 0 Bonus (-490) -490 TOTAL SCORE: 1582 Bonus ------- Follower Combat Kills 60 Aligned with FarCom 300 Friendly Fire -850 Cogmind --------- Core Integrity 0/250 Matter 265/300 Energy 465/465 System Corruption 2% Temperature Cool (0) Movement Core (800) Ox15 Location -10/Exiles Parts ------- > --- POWER (1) -------- Improved Ion Engine > --- PROPULSION (2) --- (None) > --- UTILITY (2) ------ High-capacity Storage Unit Medium Battery > --- WEAPON (2) ------- Mining Claw Longsword +1 > --- INVENTORY (12) --- Improved Ion Engine Small Battery (100) Small Battery (100) Medium Battery (200) Assault Rifle Light Assault Rifle Light Assault Rifle Light Assault Rifle Light Assault Rifle Peak State ------------ > --- POWER ------------ Improved Ion Engine > --- PROPULSION ------- Light Treads Light Treads > --- UTILITY ---------- High-capacity Storage Unit High-capacity Storage Unit > --- WEAPON ----------- Firepult > --- INVENTORY -------- Improved Ion Engine Wheel Medium Storage Unit Large Storage Unit High-capacity Storage Unit Salvage Targeting Computer Salvage Targeting Computer Targeting Computer Targeting Computer Supersonic Drone Bay Assault Rifle Light Assault Rifle Light Assault Rifle Light Assault Rifle Light Assault Rifle Light Cannon Light Cannon Light Cannon Mining Claw Longsword +1 [Rating: 29] Favorites ----------- Power Improved Ion Engine Engine Improved Ion Engine Propulsion Light Treads Treads Light Treads Leg Aluminum Leg Wheel Wheel Utility High-capacity Storage Unit Device Tractor Beam Storage High-capacity Storage Unit Weapon Assault Rifle Energy Gun Medium Laser Energy Cannon Firepult Ballistic Gun Assault Rifle Ballistic Cannon Light Cannon Slashing Weapon Longsword +1 Build | -11 -10 -10 -10 ------- Run | Scr Mat Min Exi Slots Evolved . | . . . . Power . | . . . . Propulsion . | . . . . Utility . | . . . . Weapon . | . . . . Parts Attached 20 | 2 12 1 5 Power 2 | . 2 . . Engine 2 | . 2 . . Core . | . . . . Reactor . | . . . . Propulsion 5 | . 4 . 1 Treads 4 | . 4 . . Leg . | . . . . Wheel 1 | . . . 1 Hover . | . . . . Flight . | . . . . Utility 8 | 2 5 . 1 Device 2 | 2 . . . Storage 6 | . 5 . 1 Processor . | . . . . Hackware . | . . . . Protection . | . . . . Artifact . | . . . . Weapon 5 | . 1 1 3 Energy Gun 1 | . 1 . . Energy Cannon 1 | . . . 1 Ballistic Gun . | . . . . Ballistic Cannon 1 | . . 1 . Launcher . | . . . . Special Weapon . | . . . . Impact Weapon . | . . . . Slashing Weapon 2 | . . . 2 Piercing Weapon . | . . . . Special Melee Weapon . | . . . . Unidentified Prototypes . | . . . . Parts Lost 5 | . 1 1 3 Power . | . . . . Propulsion 4 | . 1 . 3 Utility . | . . . . Weapon 1 | . . 1 . Highest Loss Streak 3 | . 1 1 3 Average Slot Usage (%) 96 | . 99 100 87 Engine 14 | . 14 14 14 Treads 27 | . 26 28 27 Storage 27 | . 27 28 25 Energy Gun 7 | . 14 3 . Energy Cannon 2 | . . . 8 Ballistic Gun 11 | . 14 14 5 Ballistic Cannon 4 | . . 10 5 Naked Turns . | . . . . Heaviest Build 93 | 12 75 76 93 Greatest Support 40 | 20 40 40 40 Greatest Overweight (x) 4 | . 1 1 4 Average Overweight (x) 1 | . . 1 1 Largest Inventory Capacity 20 | 6 20 20 20 Average Capacity 17 | 6 16 20 17 Most Carried 20 | 6 20 20 20 Average Carried 17 | 6 15 19 17 Final Capacity 20 | 6 20 20 12 Final Carried 20 | 6 20 20 9 Class Distribution -------------------- 66% | Hauler-Mutant 33% | Mutant Dominant Class ---------------- Mutant | -10/Materials Hauler-Mutant | -10/Mines Hauler-Mutant | -10/Exiles Resources | -11 -10 -10 -10 ----------- Run | Scr Mat Min Exi Matter Collected 666 | 229 300 137 . Remotely 16 | 10 6 . . Salvage Created 1432 | 109 907 293 123 Parts 88 | 7 56 13 12 Haulers Intercepted 2 | . 2 . . Recyclers Shooed 3 | . 2 1 . Parts Field Recycled . | . . . . Retrieved Matter . | . . . . Parts Self-Destructed . | . . . . Prevented . | . . . . Kills | -11 -10 -10 -10 ------- Run | Scr Mat Min Exi Combat Hostiles Destroyed 25 | . 15 9 1 Guns 20 | . 15 5 . Cannons 4 | . . 4 . AOE 1 | . . . 1 Classes Destroyed 10 | 2 7 . 1 Worker 1 | . 1 . . Tunneler 1 | 1 . . . Hauler 2 | . 2 . . Recycler 5 | 1 3 1 . Mechanic 1 | . 1 . . Operator 2 | . 2 . . Watcher 2 | . 2 . . Swarmer 9 | . 6 3 . Grunt 15 | . 9 6 . Assembled 7 | . . . 7 Best Kill Streak 3 | 2 3 3 2 Combat Bots Only 3 | . 3 3 1 Max Kills in Single Turn 6 | 1 1 1 6 Gunslinging . | . . . . Exploded 1 | . . . 1 Melee . | . . . . Uniques/NPCs Destroyed 1 | . . . 1 EX-HEX (-10/Exiles) Combat | -11 -10 -10 -10 -------- Run | Scr Mat Min Exi Damage Taken 1302 | . 512 227 563 Core 270 | . 38 6 226 Absorbed by Shields . | . . . . Core Remaining (%) 100 | 100 . . . Volleys Fired 96 | 3 69 22 2 Largest 2 | 2 2 2 1 Hottest 250 | 70 70 70 250 Shots Fired 186 | 6 134 44 2 Gun 168 | 6 134 28 . Cannon 18 | . . 16 2 Launcher . | . . . . Special . | . . . . Kinetic 110 | 3 69 38 . Thermal 76 | 3 65 6 2 Explosive . | . . . . Electromagnetic . | . . . . Robot Hit Streak 17 | 2 17 10 14 Robot Miss Streak 3 | 1 3 2 1 Penetration Max . | . . . . Secondary Targets 4 | . 3 1 . Max Gunslinging Chain 1 | . 1 1 . Shots Hit Robots 151 | 4 94 30 23 Core Hits 77 | 3 46 13 15 Critical Hits 2 | . . . 2 Critical Kills . | . . . . Critical Parts Destroyed . | . . . . Melee Attacks 21 | . . . 21 Impact . | . . . . Slashing 21 | . . . 21 Piercing . | . . . . Sneak Attacks 1 | . . . 1 Combat Hostiles . | . . . . Follow-up Attacks . | . . . . Damage Inflicted 3180 | 38 1309 467 1366 Guns 1491 | 38 1228 225 . Cannons 259 | . . 207 52 Explosions 232 | . . . 232 Melee 1082 | . . . 1082 Ramming 116 | . 81 35 . Kinetic 931 | 14 537 380 . Thermal 1051 | 24 691 52 284 Explosive . | . . . . Electromagnetic . | . . . . Impact . | . . . . Slashing 1082 | . . . 1082 Piercing . | . . . . Highest Corruption 2 | . 2 2 2 Average Corruption 1 | . 1 2 2 Corruption Purged . | . . . . Effects 31 | . 5 16 10 Message Errors 16 | . 4 8 4 Heat Flow Errors 5 | . . 2 3 Energy Discharges 3 | . . 1 2 Data Loss (minor) 5 | . 1 4 . Targeting Errors 2 | . . 1 1 Overload Shots . | . . . . Overflow Damage 5 | . . 5 . Projectiles 5 | . . 5 . Explosions . | . . . . Melee . | . . . . Knockbacks 3 | . . 3 . Impact . | . . . . Kinetic 3 | . . 3 . Secondary . | . . . . Self-Inflicted Damage . | . . . . Shots . | . . . . Rammed 15 | . 12 3 . Targets Rammed 16 | . 12 4 . Kicked . | . . . . Crushed 1 | . . 1 . Highest Temperature 424 | 18 246 116 424 Average Temperature 66 | 9 51 27 161 Received Heat Transfer 360 | . 282 78 . Effects 2 | . 2 . . Energy Bleed 1 | . 1 . . Interference 1 | . 1 . . Siege Activations . | . . . . Robots Corrupted . | . . . . Combat Hostiles . | . . . . Parts Fried . | . . . . Impact Corruptions 1 | . 1 . . Robots Melted . | . . . . Combat Hostiles . | . . . . Parts Melted 4 | . 3 1 . Heat Transferred 3500 | 74 1998 148 1280 Parts Sabotaged . | . . . . Parts Stolen . | . . . . Parts Stripped . | . . . . Power Chain Reactions . | . . . . Missiles Intercepted . | . . . . Alert | -11 -10 -10 -10 ------- Run | Scr Mat Min Exi Peak Influence 192 | 10 192 157 . Initial 27 | . 6 27 . Average 86 | 8 93 77 . Maximum Alert Level . | . . . . Low Security (%) 100 | 100 100 100 . Level 1 . | . . . . Level 2 . | . . . . Level 3 . | . . . . Level 4 . | . . . . Level 5 . | . . . . High Security . | . . . . Max Security . | . . . . Squads Dispatched 6 | . 6 . . Investigation 3 | . 3 . . Extermination . | . . . . Reinforcement 3 | . 3 . . Assault . | . . . . Garrison . | . . . . Intercept . | . . . . Construction Impeded . | . . . . Haulers Reinforced . | . . . . Stealth | -11 -10 -10 -10 --------- Run | Scr Mat Min Exi Distress Signals 1 | . . 1 . Communications Jammed . | . . . . Distress Signals . | . . . . Times Spotted 44 | . 32 10 2 Peak Tracking Total 5 | . 5 3 3 Tactical Retreats 1 | . 1 . . Traps | -11 -10 -10 -10 ------- Run | Scr Mat Min Exi Traps Triggered 3 | . 3 . . Indirectly . | . . . . Trap Hack Attempts . | . . . . Triggered . | . . . . Disarmed . | . . . . Reprogrammed . | . . . . Reused . | . . . . Traps Extracted . | . . . . Installed . | . . . . Triggered . | . . . . Machines | -11 -10 -10 -10 ---------- Run | Scr Mat Min Exi Machines Disabled 4 | . . 1 3 Max in Single Turn 3 | . . 1 3 Machines Sabotaged . | . . . . Garrisons Compromised . | . . . . Overloaded Fab Kills . | . . . . Fab Network Shutdowns . | . . . . Hacking | -11 -10 -10 -10 --------- Run | Scr Mat Min Exi Machines Accessed 9 | . 7 . 2 Terminals 4 | . 4 . . Fabricators . | . . . . Repair Stations 1 | . 1 . . Recycling Units 2 | . 2 . . Scanalyzers . | . . . . Garrison Access . | . . . . Total Hacks 18 | . 16 . 2 Successful 10 | . 8 . 2 Failed 8 | . 8 . . Catastrophic 1 | . 1 . . Database Lockouts . | . . . . Manual 9 | . 8 . 1 Terminals 11 | . 11 . . Fabricators . | . . . . Repair Stations 3 | . 3 . . Recycling Units 2 | . 2 . . Scanalyzers . | . . . . Garrison Access . | . . . . Terminal Hacks 5 | . 3 . 2 Record 1 | . . . 1 Robot Analysis 3 | . 3 . . EX-Prototype ID Bank 1 | . . . 1 Fabricator Hacks . | . . . . Repair Station Hacks 2 | . 2 . . Scan Component 1 | . 1 . . Repair 1 | . 1 . . Recycling Unit Hacks . | . . . . Scanalyzer . | . . . . Garrison Access Hacks . | . . . . Unauthorized Hacks 3 | . 3 . . Terminals 1 | . 1 . . Botnet 1 | . 1 . . Fabricators . | . . . . Repair Stations . | . . . . Recycling Units 2 | . 2 . . Tunnel 2 | . 2 . . Scanalyzers . | . . . . Garrison Access . | . . . . Data Cores Recovered . | . . . . Used . | . . . . Hacking Detections 5 | . 5 . . Full Trace Events . | . . . . Feedback Events . | . . . . Feedback Blocked . | . . . . Robot Schematics Acquired . | . . . . Robots Built . | . . . . Matter . | . . . . Time . | . . . . Total Robot Build Rating . | . . . . Part Schematics Acquired . | . . . . Parts Built . | . . . . Matter . | . . . . Time . | . . . . Total Part Build Rating . | . . . . Parts Repaired 1 | . 1 . . Time 26 | . 26 . . Parts Recycled . | . . . . Recycled Matter . | . . . . Retrieved Matter . | . . . . Retrieved Components . | . . . . Parts Scanalyzed . | . . . . Part Schematics Acquired . | . . . . Parts Damaged . | . . . . Bothacking | -11 -10 -10 -10 ------------ Run | Scr Mat Min Exi Used RIF Installer . | . . . . Robots Hacked . | . . . . Non-combat . | . . . . Combat . | . . . . Robot Hacks Applied . | . . . . Relay Couplers Released . | . . . . Robots Rewired . | . . . . Allies Hacked . | . . . . Hacks Repelled . | . . . . Allies | -11 -10 -10 -10 -------- Run | Scr Mat Min Exi Total Allies 2 | . . 2 . Largest Group 2 | . . 2 2 Highest-Rated Group 51 | . . 51 43 Highest-Rated Ally 31 | . . 31 23 Total Orders . | . . . . Ally Attacks 9 | . . 9 . Total Damage 167 | . . 167 . Kills 2 | . . 2 . Allies Corrupted . | . . . . Allies Melted . | . . . . Intel | -11 -10 -10 -10 ------- Run | Scr Mat Min Exi Robot Analysis Total 3 | . 3 . . Derelict Logs Recovered 1 | . . 1 . Drone Launches . | . . . . Drone Recoveries . | . . . . Exploration | -11 -10 -10 -10 ------------- Run | Scr Mat Min Exi Turns Passed 3961 | 30 1663 1193 1075 Spaces Moved 1892 | 15 748 593 536 Core . | . . . . Treads 1848 | . 720 593 535 Legs 43 | 15 28 . . Wheels 1 | . . . 1 Hover . | . . . . Flight . | . . . . Fastest Speed 120 | 120 120 180 120 Average Speed 179 | 120 176 180 186 Slowest Speed 200 | 120 180 180 200 Overloaded Moves . | . . . . Propulsion Burnouts . | . . . . Robots Hopped . | . . . . Cave-ins Triggered . | . . . . Exploration Rate (%) 66 | 2 99 98 67 Regions Visited 3 Branch Regions 2 Pre-discovered Areas 4 | . 2 1 1 Known Exits Taken . | . . . . Unknown Exits Taken 3 | 1 1 1 . Scrap Searched 1 | . . 1 . Spaces Dug . | . . . . Terrain Destroyed 9 | . . . 9 Melee . | . . . . Projectile 2 | . . . 2 AOE 7 | . . . 7 Terrain Rammed . | . . . . Walls Destroyed . | . . . . Machines Disabled . | . . . . Actions | -11 -10 -10 -10 --------- Run | Scr Mat Min Exi Total 2251 | 20 956 674 601 Wait 131 | . 74 50 7 Move 1889 | 14 747 592 536 Hop . | . . . . Pick Up 38 | . 26 3 9 Fast Attach 7 | 2 3 . 2 Attach 8 | . 4 1 3 Detach . | . . . . Swap 5 | . 5 . . Drop 40 | 1 16 2 21 Fire 96 | 3 69 22 2 Melee 21 | . . . 21 Ram . | . . . . Kick . | . . . . Crush 16 | . 12 4 . Escape Stasis . | . . . . Rewire . | . . . . Trap . | . . . . Miscellaneous . | . . . . Route ------- -11/Scrapyard -10/Materials (discovered 5 exits: [*Mat x3] / [*Min x2]) -10/Mines (discovered 3 exits: [*Mat x2] / *Exi) -10/Exiles (discovered 1 exit: [*Min]) History --------- Turn | Location | Event 5 | -11/Scrapyard | Discovered new exit (range 3) 31 | -11/Scrapyard | Entered Materials 300 | -10/Materials | Build established: Mutant 309 | -10/Materials | Discovered new exit (range 12) 514 | -10/Materials | Discovered new exit (range 16) 727 | -10/Materials | Discovered new exit (range 6) 1075 | -10/Materials | Discovered new exit (range 12) 1332 | -10/Materials | Build established: Hauler-Mutant 1467 | -10/Materials | Discovered new exit (range 6) 1530 | -10/Materials | Repaired Lgt. Treads 1694 | -10/Materials | Entered Mines 1737 | -10/Mines | Learned location of Recycling (-7) 1801 | -10/Mines | Deemed a non-threat by the Exiles lab entrance 1801 | -10/Mines | Discovered new exit (range 5) 1844 | -10/Mines | Discovered new exit (range 4) 2311 | -10/Mines | Discovered new exit (range 10) 2887 | -10/Mines | Entered Exiles 2887 | -10/Exiles | Accompanied by 2 allies 2917 | -10/Exiles | Led the pair of lost Derelicts to a safe place 2934 | -10/Exiles | Met 8R-AWN 2963 | -10/Exiles | Met EX-HEX 3053 | -10/Exiles | Met EX-DEC 3082 | -10/Exiles | Learned location of Zion (-6) 3197 | -10/Exiles | Met EX-BIN 3222 | -10/Exiles | Aligned with FarCom system 3224 | -10/Exiles | Given EX-Vault access code 3266 | -10/Exiles | Opened EX-Vault 3276 | -10/Exiles | Found Longsword +1 3281 | -10/Exiles | Found Supersonic Drone Bay 3288 | -10/Exiles | Found Firepult 3333 | -10/Exiles | Warned to stay clear of 0b10 Research branches 3611 | -10/Exiles | Discovered new exit (range 15) 3908 | -10/Exiles | Attacked by the Exiles 3912 | -10/Exiles | Destroyed EX-HEX 3932 | -10/Exiles | Build established: Mutant 3942 | -10/Exiles | Core integrity fell below 50% 3958 | -10/Exiles | Core integrity fell below 20% 3962 | -10/Exiles | Destroyed by 8R-AWN with 8R-AWN's Boregun Last Messages --------------- 03936_ HV Slug penetrates Wall. 03938_ Penetrated by HV Slug. 03938_ Critical hit. 03938_ Lgt. Treads destroyed. 03939_ Destroyed Prototype Protection. 03941_ Penetrated by HV Slug. 03944_ FF#M 6 ISED|F|R>DAGKOL%UBX,HHJWICQZ 03944_ Penetrated by HV Slug. 03948_ HV Slug penetrates Machine. 03948_ HV Slug penetrates Wall. 03950_ Penetrated by HV Slug. 03950_ Critical hit. 03950_ Lgt. Treads destroyed. 03950_ Penetrated by HV Slug. 03955_ Wheel destroyed. 03955_ Penetrated by HV Slug. 03955_ System corrupted: Longsword +1 targeting data glitched. 03957_ Penetrated by HV Slug. 03959_ 8R-AWN suffers critical hit. 03959_ Penetrated by HV Slug. Map ----- +----------------------------------------------------+ | """#?????????????????????????????????????? | | """#?????????????????????????????????????? | | """"?????????????????????????????????????? | | """#?????????????????????????????????????? | | "X" """"?????????????????????????????????????? | | """ #?????????????????????????????????????? | | """""""""#?????????????????????????????????????? | | ###########?????????????????????????????????????? | | #???????????????????????????????????????????????? | | #???????????????????????????????????????????????? | | ##??????????????????????????????????????????????? | | ##???###########???????????????????????????????? | | #####"""" """"##??????????????????????????????? | | " """ """"##?????????????????????????????? | | "" " #?????????????????????????????? | | " """#?????????????????????????????? | | a"#???????????#####?????????????? | | " "##?????????##" #?????????????? | | "###???????#" #?????????????# | | ""#??????##" ##????????????# | | " !"#????### ###????????### | | ##""" !!##???# ########## | | ?##""" !!!%##?## #""""## | | ??#"""" !!!]### | | ?##"" *!! ## | | ##"""" @ #### | | "" g ""#?#"""""#### | | #"""##?#######??#### * | | ######??????????????##### | | ##???????????????????????# | | " % ##????????????????????????? | | "" " #?????????????????????????? | | #""" " " ""# % % ##?????????????????????????? | | #####""" """## ##??????????????????????????? | | ????###""""##### ;;#???????????????????????????? | | ###???######???# ##????????????????????????????? | | " #????????????### ??????????????????????????????? | | #??????????????#???????????????????????????????? | | "#??????????????????????????????????????????????? | | "#??????????????????????????????????????????????? | | ###??????????????????????????????????????????????? | | ?????????????????????????????????????????????????? | | ?????????????????????????????????????????????????? | | ?????????????????????????????????????????????????? | | ?????????????????????????????????????????????????? | | ?????????????????????????????????????????????????? | | ?????????????????????????????????????????????????? | | ?????????????????????????????????????????????????? | | ?????????????????????????????????????????????????? | | ?????????????????????????????????????????????????? | +----------------------------------------------------+ Best States ------------- Heat Dissipation 25 Energy Generation 12 Energy Capacity 465 Matter Stores 300 Matter Capacity 300 Sight Range 16 Terrain Scan Range 16 Terrain Scan Density 10 Evasion (%) 40 Recoil Reduction 2 Item Schematics ----------------- None Robot Schematics ------------------ None Fabricated ------------ Nothing Alien Tech Used ----------------- None Achievements -------------- None Challenges ------------ None Game ------ Seed SuperchargedGaussPrototype Manual? 0 Play Time 00:23:14 Cumulative 763.4 hours Start 2020.10.14 @ 12:55:55 End 2020.10.14 @ 13:15:12 Sessions 1 Manual Loads 0 Difficulty Rogue Special Mode None Game No. 486 Rogue 486 Adventurer 0 Explorer 0 Win Type - Total 112 Types 76/7/8/10/5/1/4/0/1 Lore% 96 Gallery% 94 Achievement% 81 Wizard Run 0 Options --------- ASCII 0 Keyboard 0 Movement Numpad Keybinds 0 Fullscreen 2 Font 18/SmallcapsGlow Map View 76x50 Tactical HUD 1 Map Filters NONE Filters NONE Steam 1 RUN: 62374e78-c350-44e2-ad6d-0e0ac79f0e3c